bitfinex/quotes_SOLUSD_20250108
["timestamp","ask_amount","ask_price","bid_price","bid_amount"]
[1736365717735,23.776884,194.75,194.66,25.28498756]
[1736365718239,23.776884,194.75,194.67,25.28498756]
[1736365718442,23.776884,194.75,194.68,25.28498756]
[1736365718855,23.776884,194.75,194.67,25.28498756]
[1736365719475,6.1077,194.76,194.68,25.28498756]
[1736365719636,6.1077,194.76,194.7,25.28498756]
[1736365719833,6.1077,194.76,194.73,25.28498756]
[1736365720037,6.0735,194.81,194.75,25.28498756]
[1736365721266,6.0735,194.81,194.76,25.28498756]
[1736365721464,6.0735,194.86,194.79,25.28498756]
[1736365721645,6.0735,194.86,194.8,28.08498756]
[1736365721850,23.776884,194.85,194.8,28.08498756]
[1736365722275,6.0735,194.86,194.82,25.28498756]
[1736365722446,6.0735,194.86,194.83,25.28498756]
[1736365723163,23.776884,194.9,194.84,25.28498756]
[1736365723769,23.776884,194.9,194.83,25.28498756]
[1736365724158,6.2008,194.91,194.84,25.28498756]
[1736365724687,23.776884,194.9,194.84,25.28498756]
[1736365724873,23.776884,194.9,194.83,25.28498756]
[1736365725182,6.2008,194.91,194.85,25.28498756]
[1736365725378,6.2008,194.91,194.86,25.28498756]
[1736365725587,6.2008,194.91,194.87,25.28498756]
[1736365725881,23.776884,194.9,194.88,2.8]
[1736365727281,23.776884,194.9,194.8,25.28498756]
[1736365727455,23.776884,194.9,194.82,2.8]
[1736365727659,23.776884,194.9,194.83,5.0]
[1736365731257,6.2008,194.91,194.84,25.28498756]
[1736365731474,81.3,194.96,194.88,25.28498756]
[1736365731783,23.776884,194.95,194.89,25.28498756]
[1736365731980,23.776884,194.95,194.88,25.28498756]
[1736365732978,23.776884,194.95,194.87,25.28498756]
[1736365733378,23.776884,194.95,194.88,25.28498756]
[1736365733686,23.776884,194.95,194.87,25.28498756]
[1736365735989,23.776884,194.95,194.85,25.28498756]
[1736365736170,23.776884,194.95,194.83,5.0]
[1736365736171,23.776884,194.95,194.83,30.28498756]
[1736365736370,23.776884,194.93,194.83,5.0]
[1736365737297,23.776884,194.89,194.83,5.0]
[1736365741094,81.3,194.93,194.83,30.28498756]
[1736365741260,81.3,194.93,194.86,25.28498756]
[1736365741461,87.3651,194.97,194.88,25.28498756]
[1736365741896,105.076884,194.96,194.87,25.28498756]
[1736365742190,105.076884,194.96,194.84,25.28498756]
[1736365742191,23.776884,194.91,194.84,25.28498756]
[1736365742425,23.776884,194.91,194.83,30.28498756]
[1736365742699,81.3,194.92,194.85,25.28498756]
[1736365743066,23.776884,194.91,194.86,25.28498756]
[1736365743578,23.776884,194.91,194.84,25.28498756]
[1736365743767,23.776884,194.91,194.83,5.0]
[1736365744374,23.776884,194.91,194.83,7.8]
[1736365749504,23.776884,194.91,194.86,15.82808815]
[1736365749705,81.3,194.92,194.87,15.82808815]
[1736365750171,23.776884,194.91,194.88,15.82808815]
[1736365750598,23.776884,194.94,194.88,15.82808815]
[1736365751301,23.776884,194.94,194.88,25.31559388]
[1736365751994,23.776884,194.94,194.86,25.31559388]
[1736365752609,23.776884,194.94,194.84,25.31559388]
[1736365753399,23.776884,194.94,194.85,25.31559388]
[1736365754301,23.776884,194.94,194.83,33.11559388]
[1736365754487,23.776884,194.94,194.84,25.31559388]
[1736365754910,23.776884,194.94,194.83,7.8]
[1736365754911,23.776884,194.94,194.85,25.31559388]
[1736365755600,23.776884,194.94,194.84,25.31559388]
[1736365756411,23.776884,194.94,194.85,25.31559388]
[1736365756596,81.3,194.93,194.85,25.31559388]
[1736365756900,23.776884,194.92,194.83,33.11559388]
[1736365757608,23.776884,194.92,194.83,7.8]
[1736365757908,23.776884,194.92,194.85,25.31559388]
[1736365759011,23.776884,194.92,194.84,25.31559388]
[1736365759503,23.776884,194.92,194.83,33.11559388]
[1736365759697,23.776884,194.92,194.83,7.8]
[1736365761321,23.776884,194.92,194.83,33.11559388]
[1736365761525,23.776884,194.92,194.83,7.8]
[1736365762401,23.776884,194.92,194.83,5.0]
[1736365762609,23.776884,194.9,194.83,5.0]
[1736365765629,81.3,194.91,194.86,25.31559388]
[1736365765833,81.3,194.91,194.87,25.31559388]
[1736365766009,81.3,194.96,194.87,25.31559388]
[1736365766331,81.3,194.96,194.88,25.31559388]
[1736365767236,23.776884,194.95,194.86,25.31559388]
[1736365767442,23.776884,194.95,194.85,25.31559388]
[1736365768097,23.776884,194.95,194.84,25.31559388]
[1736365768304,23.776884,194.91,194.83,5.0]
[1736365768832,23.776884,194.89,194.83,5.0]
[1736365769003,23.776884,194.87,194.83,5.0]
[1736365779109,20.0,194.85,194.83,5.0]
[1736365779308,81.3,194.88,194.83,5.0]
[1736365779509,23.776884,194.87,194.83,5.0]
[1736365783939,81.3,194.88,194.85,15.84241795]
[1736365784127,8.02262442,194.91,194.85,18.64241795]
[1736365784730,8.02262442,194.91,194.86,15.84241795]
[1736365784948,8.02262442,194.93,194.89,15.84241795]
[1736365785241,8.02262442,194.93,194.9,15.84241795]
[1736365785441,8.02262442,194.93,194.89,15.84241795]
[1736365785649,8.02262442,194.93,194.92,15.84241795]
[1736365785815,8.02262442,194.99,194.92,15.84241795]
[1736365786013,8.02262442,194.99,194.93,18.64241795]
[1736365786514,14.36762442,195.04,194.93,18.64241795]
[1736365787049,6.345,195.04,194.93,18.64241795]
[1736365787208,20.0,195.01,194.94,15.84241795]
[1736365787410,20.0,195.01,194.94,25.29812876]
[1736365787605,20.0,195.01,194.93,2.8]
[1736365789543,23.776884,195.0,194.87,1.5977]
[1736365789837,20.0,195.0,194.92,25.29812876]
[1736365790018,20.0,195.0,194.9,25.29812876]
[1736365790219,20.0,195.0,194.91,25.29812876]
[1736365790614,20.0,195.0,194.9,25.29812876]
[1736365790940,20.0,195.0,194.91,25.29812876]
[1736365792353,20.0,195.0,194.92,25.29812876]
[1736365792525,23.776884,195.02,194.93,25.29812876]
[1736365793050,23.776884,195.02,194.92,25.29812876]
[1736365793423,23.776884,195.02,194.93,25.29812876]
[1736365793938,23.776884,195.02,194.92,25.29812876]
[1736365794842,23.776884,195.02,194.93,25.29812876]
[1736365795535,81.3,195.01,194.92,25.29812876]
[1736365796135,81.3,195.01,194.93,25.29812876]
[1736365797238,81.3,195.01,194.94,25.29812876]
[1736365797459,81.3,195.01,194.95,25.29812876]
[1736365797747,81.3,195.01,194.96,2.8]
[1736365798433,81.3,195.06,194.98,25.29812876]
[1736365800534,81.3,195.06,194.97,26.90302876]
[1736365800753,23.776884,195.05,194.97,26.90302876]
[1736365801157,23.776884,195.05,194.98,25.29812876]
[1736365801363,81.3,195.06,194.97,21.6049]
[1736365801536,81.3,195.12,195.04,25.29812876]
[1736365801741,81.3,195.12,195.06,25.29812876]
[1736365801942,81.3,195.12,195.06,28.09812876]
[1736365802252,81.3,195.12,195.07,25.29812876]
[1736365802637,6.2593,195.13,195.07,25.29812876]
[1736365802971,81.3,195.16,195.09,25.29812876]
[1736365803136,81.3,195.16,195.08,25.29812876]
[1736365803538,6.3894,195.18,195.11,25.29812876]
[1736365803744,8.02262442,195.21,195.15,25.29812876]
[1736365804039,8.02262442,195.21,195.16,2.8]
[1736365804247,6.3894,195.24,195.16,2.8]
[1736365804944,23.776884,195.23,195.16,2.8]
[1736365808262,20.0,195.22,195.16,2.8]
[1736365808443,23.776884,195.25,195.16,28.09812876]
[1736365808846,23.776884,195.25,195.16,2.8]
[1736365810239,20.0,195.22,195.16,2.8]
[1736365810457,20.0,195.22,195.11,15.77692444]
[1736365810458,23.776884,195.21,195.11,15.77692444]
[1736365810644,23.776884,195.21,195.1,15.77692444]
[1736365810969,20.0,195.18,195.11,2.8]
[1736365811682,23.776884,195.17,195.06,2.8]
[1736365812671,23.776884,195.17,195.02,1.529]
[1736365812672,23.776884,195.13,195.03,2.8]
[1736365812884,23.776884,195.13,195.02,1.529]
[1736365813346,23.776884,195.13,195.02,17.30592444]
[1736365813547,23.776884,195.13,195.03,15.77692444]
[1736365814976,23.776884,195.13,195.0,2.8]
[1736365814977,23.776884,195.09,195.0,2.8]
[1736365815853,81.3,195.16,195.0,2.8]
[1736365815854,20.0,195.08,195.0,2.8]
[1736365817552,23.776884,195.07,195.0,2.8]
[1736365817870,6.3081,195.08,195.0,15.77692444]
[1736365818056,6.3081,195.13,195.02,15.77692444]
[1736365818255,6.3081,195.13,195.05,15.77692444]
[1736365818445,81.3,195.14,195.06,18.57692444]
[1736365819054,81.3,195.14,195.06,2.8]
[1736365819442,81.3,195.14,195.07,25.26518495]
[1736365820873,81.3,195.14,195.06,28.06518495]
[1736365821775,6.3081,195.17,195.09,25.26518495]
[1736365822549,6.3081,195.17,195.1,25.26518495]
[1736365822878,6.3081,195.17,195.08,25.26518495]
[1736365824573,6.3081,195.17,195.09,25.26518495]
[1736365824995,6.3081,195.17,195.08,25.26518495]
[1736365825284,23.776884,195.16,195.07,26.77908495]
[1736365825581,23.776884,195.16,195.07,1.5139]
[1736365825751,23.776884,195.16,195.06,28.06518495]
[1736365825752,23.776884,195.14,195.06,2.8]
[1736365826080,23.776884,195.14,195.06,2.78]
[1736365826377,23.776884,195.14,195.05,2.78]
[1736365826886,23.776884,195.14,195.05,28.04518495]
[1736365827568,81.3,195.15,195.05,28.04518495]
[1736365827755,81.3,195.15,195.07,25.26518495]
[1736365827957,81.3,195.15,195.09,25.26518495]
[1736365828172,81.3,195.15,195.1,25.26518495]
[1736365828484,1.5614,195.2,195.1,25.26518495]
[1736365828485,23.776884,195.19,195.1,25.26518495]
[1736365828849,6.5676,195.22,195.13,25.26518495]
[1736365829073,6.5676,195.22,195.15,25.26518495]
[1736365829379,6.5676,195.22,195.14,2.78]
[1736365829380,6.5676,195.22,195.14,28.04518495]
[1736365831780,6.5676,195.22,195.14,2.78]
[1736365832085,6.5676,195.22,195.16,25.26518495]
[1736365832277,82.8812,195.26,195.16,25.26518495]
[1736365832591,6.1657,195.27,195.18,25.26518495]
[1736365833653,6.1657,195.27,195.19,25.26518495]
[1736365835000,6.1657,195.27,195.18,25.26518495]
[1736365835190,23.776884,195.26,195.16,25.26518495]
[1736365835475,23.776884,195.26,195.17,2.78]
[1736365835984,23.776884,195.26,195.17,28.04518495]
[1736365836303,23.776884,195.26,195.17,2.78]
[1736365838778,23.776884,195.26,195.1,25.26518495]
[1736365838779,23.776884,195.22,195.1,25.26518495]
[1736365839007,23.776884,195.22,195.11,2.78]
[1736365839304,30.304284,195.18,195.11,2.78]
[1736365840301,6.5274,195.18,195.11,18.56838822]
[1736365840506,6.5274,195.18,195.11,2.78]
[1736365841075,6.5274,195.18,195.11,18.56838822]
[1736365841274,23.776884,195.2,195.12,15.78838822]
[1736365842282,23.776884,195.2,195.11,18.56838822]
[1736365842479,23.776884,195.2,195.11,2.78]
[1736365843203,23.776884,195.2,195.11,18.56838822]
[1736365844595,23.776884,195.2,195.11,2.78]
[1736365844799,23.776884,195.2,195.06,15.78838822]
[1736365844800,23.776884,195.16,195.06,15.78838822]
[1736365845309,23.776884,195.16,195.05,31.38538822]
[1736365845487,23.776884,195.16,195.07,15.78838822]
[1736365845812,23.776884,195.16,195.06,15.78838822]
[1736365846116,23.776884,195.16,195.07,15.78838822]
[1736365846410,23.776884,195.16,195.06,15.78838822]
[1736365848086,23.776884,195.16,195.08,15.78838822]
[1736365848494,23.776884,195.16,195.07,12.8155]
[1736365849016,23.776884,195.16,195.07,28.60388822]
[1736365849802,23.776884,195.16,195.09,15.78838822]
[1736365849979,23.776884,195.16,195.08,15.78838822]
[1736365850589,23.776884,195.16,195.07,28.60388822]
[1736365850790,23.776884,195.16,195.08,15.78838822]
[1736365851602,23.776884,195.16,195.07,28.60388822]
[1736365851903,23.776884,195.16,195.05,2.78]
[1736365851904,6.1583,195.15,195.05,18.56838822]
[1736365852081,23.776884,195.14,195.05,2.78]
[1736365852281,23.776884,195.14,195.07,15.78838822]
[1736365855885,23.776884,195.14,195.05,2.78]
[1736365856680,23.776884,195.14,195.04,15.78838822]
[1736365859009,23.776884,195.14,195.06,15.78838822]
[1736365859310,6.1583,195.15,195.11,15.78838822]
[1736365859513,8.02262442,195.17,195.12,18.56838822]
[1736365860028,8.02262442,195.17,195.13,15.78838822]
[1736365860309,8.02262442,195.23,195.16,15.78838822]
[1736365860516,8.02262442,195.23,195.19,15.78838822]
[1736365860687,8.02262442,195.23,195.21,15.78838822]
[1736365861088,8.02262442,195.26,195.22,15.78838822]
[1736365861303,8.02262442,195.26,195.23,15.78838822]
[1736365862121,6.178,195.31,195.23,15.78838822]
[1736365862122,23.776884,195.3,195.23,15.78838822]
[1736365862420,6.178,195.31,195.24,15.78838822]
[1736365862798,6.178,195.31,195.23,12.8053]
[1736365862799,23.776884,195.3,195.23,15.78838822]
[1736365862987,23.776884,195.3,195.22,15.78838822]
[1736365863421,23.776884,195.3,195.21,15.78838822]
[1736365863589,23.776884,195.3,195.2,18.56838822]
[1736365863987,23.776884,195.3,195.2,2.78]
[1736365864619,23.776884,195.3,195.18,28.59678822]
[1736365864789,23.776884,195.3,195.19,15.78838822]
[1736365864990,23.776884,195.3,195.18,28.59678822]
[1736365865204,23.776884,195.26,195.17,18.56838822]
[1736365865612,23.776884,195.26,195.17,2.78]
[1736365868894,23.776884,195.24,195.17,2.78]
[1736365876127,23.776884,195.22,195.12,15.78838822]
[1736365876330,23.776884,195.22,195.13,2.78]
[1736365876630,23.776884,195.22,195.11,14.4292]
[1736365876839,23.776884,195.2,195.13,2.78]
[1736365877804,23.776884,195.2,195.13,18.56838822]
[1736365878642,23.776884,195.2,195.13,2.78]
[1736365880641,23.776884,195.2,195.11,2.78]
[1736365881240,23.776884,195.2,195.12,15.78838822]
[1736365882211,23.776884,195.2,195.11,18.56838822]
[1736365882532,23.776884,195.2,195.12,15.78838822]
[1736365883605,23.776884,195.2,195.1,28.60168822]
[1736365883804,23.776884,195.2,195.11,2.78]
[1736365884414,23.776884,195.2,195.11,18.56838822]
[1736365884626,23.776884,195.2,195.12,15.78838822]
[1736365884833,81.3,195.23,195.16,15.78838822]
[1736365885017,14.03102442,195.26,195.17,15.78838822]
[1736365885225,23.776884,195.22,195.17,15.78838822]
[1736365885732,6.0084,195.26,195.18,15.78838822]
[1736365885931,6.0084,195.26,195.16,1.5608]
[1736365885932,23.776884,195.26,195.19,18.56838822]
[1736365886648,23.776884,195.26,195.19,2.78]
[1736365892433,23.776884,195.26,195.19,18.56838822]
[1736365892851,23.776884,195.26,195.19,2.78]
[1736365895248,81.3,195.27,195.19,18.56838822]
[1736365895426,20.0,195.27,195.2,15.78838822]
[1736365895829,23.776884,195.26,195.2,15.78838822]
[1736365896044,81.3,195.32,195.21,15.78838822]
[1736365896253,81.3,195.32,195.22,15.78838822]
[1736365896459,8.02262442,195.33,195.24,15.78838822]
[1736365896634,8.02262442,195.33,195.26,15.78838822]
[1736365896832,8.02262442,195.33,195.27,2.78]
[1736365897041,8.02262442,195.33,195.28,15.78838822]
[1736365897556,8.02262442,195.33,195.27,18.56838822]
[1736365897733,23.776884,195.32,195.27,2.78]
[1736365898128,23.776884,195.37,195.27,2.78]
[1736365898353,81.3,195.38,195.27,18.56838822]
[1736365898354,20.0,195.34,195.27,18.56838822]
[1736365898660,89.32262442,195.38,195.28,15.78838822]
[1736365898858,89.32262442,195.38,195.27,18.56838822]
[1736365899232,23.776884,195.34,195.27,18.56838822]
[1736365899750,8.02262442,195.41,195.3,15.78838822]
[1736365899953,8.02262442,195.41,195.33,15.78838822]
[1736365900247,8.02262442,195.41,195.34,15.78838822]
[1736365900429,8.02262442,195.41,195.35,2.78]
[1736365901335,32.0904977,195.44,195.35,2.78]
[1736365901336,20.0,195.44,195.35,2.78]
[1736365901543,23.776884,195.39,195.35,2.78]
[1736365903858,23.776884,195.39,195.31,2.78]
[1736365904848,23.776884,195.35,195.31,2.78]
[1736365907340,81.3,195.39,195.31,2.78]
[1736365907867,23.776884,195.38,195.31,2.78]
[1736365912475,23.776884,195.36,195.26,1.6484]
[1736365912681,23.776884,195.36,195.26,4.4284]
[1736365916798,23.776884,195.36,195.26,20.21678822]
[1736365916967,23.776884,195.36,195.26,4.4284]
[1736365917986,23.776884,195.32,195.26,4.4284]
[1736365919385,23.776884,195.32,195.26,1.6484]
[1736365921273,23.776884,195.32,195.26,17.43678822]
[1736365922682,20.0,195.33,195.26,17.43678822]
[1736365923877,23.776884,195.32,195.26,17.43678822]
[1736365924192,23.776884,195.32,195.26,1.6484]
[1736365924595,23.776884,195.3,195.21,1.6419]
[1736365924971,23.776884,195.26,195.21,1.6419]
[1736365927079,23.776884,195.26,195.12,0.76833653]
[1736365927080,20.0,195.23,195.16,1.6603]
[1736365927393,23.776884,195.22,195.16,1.6603]
[1736365929667,83.34051265,195.29,195.16,1.6603]
[1736365929994,81.3,195.29,195.19,15.78838822]
[1736365930185,9.66372442,195.33,195.17,12.8093]
[1736365930186,9.66372442,195.33,195.22,15.78838822]
[1736365930393,9.66372442,195.33,195.23,2.78]
[1736365930902,43.776884,195.29,195.23,2.78]
[1736365931907,43.776884,195.29,195.2,2.78]
[1736365932070,43.776884,195.29,195.16,1.6603]
[1736365932428,43.776884,195.29,195.17,2.78]
[1736365934380,48.776884,195.29,195.17,2.78]
[1736365934709,43.776884,195.29,195.17,2.78]
[1736365935205,101.3,195.24,195.17,2.78]
[1736365935388,23.776884,195.23,195.17,2.78]
[1736365938306,23.776884,195.23,195.16,1.6603]
[1736365938487,105.076884,195.21,195.11,1.5137]
[1736365938688,20.0,195.18,195.12,2.78]
[1736365938996,20.0,195.18,195.11,1.5137]
[1736365938997,23.776884,195.17,195.11,1.5137]
[1736365939674,23.776884,195.15,195.11,1.5137]
[1736365940137,81.3,195.16,195.11,1.5137]
[1736365942221,23.776884,195.15,195.07,2.78]
[1736365942413,20.0,195.12,195.07,2.78]
[1736365943326,81.3,195.16,195.08,15.78838822]
[1736365944184,81.3,195.16,195.07,2.78]
[1736365944385,23.776884,195.15,195.07,2.78]
[1736365944885,23.776884,195.15,195.06,2.78]
[1736365945148,23.776884,195.11,195.06,2.78]
[1736365945293,23.776884,195.11,195.05,1.6519]
[1736365945486,23.776884,195.11,195.05,4.4319]
[1736365946109,23.776884,195.11,195.05,1.6519]
[1736365948791,20.0,195.08,195.05,1.6519]
[1736365949012,23.776884,195.07,195.02,2.78]
[1736365950041,13.686774,195.07,195.02,2.78]
[1736365950240,101.3,195.1,195.02,2.78]
[1736365950410,101.3,195.1,195.0,4.2933]
[1736365952240,20.0,195.06,195.0,4.2933]
[1736365953645,23.776884,195.03,194.95,8.1328]
[1736365953856,23.776884,195.03,194.95,10.8928]
[1736365954342,20.0,195.0,194.95,4.3882]
[1736365958241,23.776884,194.99,194.95,4.3882]
[1736365958747,23.776884,194.99,194.95,2.76]
[1736365959547,23.776884,194.99,194.92,2.76]
[1736365959931,23.776884,194.99,194.91,1.5164]
[1736365960132,20.0,194.96,194.91,4.2764]
[1736365962255,20.0,194.96,194.91,1.5164]
[1736365962431,20.0,194.96,194.91,4.2764]
[1736365964554,20.0,194.96,194.91,1.5164]
[1736365964852,20.0,194.95,194.91,1.5164]
[1736365965029,20.0,194.95,194.88,2.76]
[1736365969460,23.776884,194.94,194.88,2.76]
[1736365971147,23.776884,194.94,194.86,1.6423]
[1736365972033,23.776884,194.9,194.86,1.6423]
[1736365972234,81.3,194.93,194.86,1.6423]
[1736365972669,23.776884,194.92,194.86,1.6423]
[1736365975136,20.0,194.89,194.83,5.0]
[1736365975337,23.776884,194.88,194.83,5.0]
[1736365976974,20.0,194.9,194.83,5.0]
[1736365977539,20.0,194.89,194.83,5.0]
[1736365980352,23.776884,194.88,194.83,5.0]
[1736365980745,81.3,194.87,194.83,5.0]
[1736365981073,23.776884,194.86,194.83,5.0]
[1736365982777,81.3,194.87,194.83,5.0]
[1736365983561,20.0,194.9,194.83,5.0]
[1736365984483,43.776884,194.89,194.83,5.0]
[1736365990216,23.776884,194.89,194.83,5.0]
[1736365992591,81.3,194.85,194.83,5.0]
[1736365996163,81.3,194.88,194.83,5.0]
[1736365996479,23.776884,194.87,194.83,5.0]
[1736365997463,81.3,194.88,194.83,5.0]
[1736365998992,23.776884,194.87,194.83,5.0]
[1736366008292,81.3,194.86,194.83,5.0]
[1736366009401,23.776884,194.85,194.83,5.0]
[1736366014189,105.076884,194.84,194.83,5.0]
[1736366017975,23.776884,194.84,194.83,5.0]
[1736366023592,25.82769868,194.84,194.83,5.0]
[1736366024396,25.82769868,194.84,194.83,2.95000001]
[1736366024795,23.776884,194.79,194.72,2.76]
[1736366025408,23.776884,194.79,194.71,1.6608]
[1736366026818,20.0,194.76,194.71,1.6608]
[1736366027419,23.776884,194.75,194.71,1.6608]
[1736366028912,81.3,194.78,194.71,1.6608]
[1736366029486,23.776884,194.77,194.71,1.6608]
[1736366030202,81.3,194.78,194.72,10.1330289]
[1736366030512,81.3,194.78,194.71,1.6608]
[1736366030513,81.3,194.78,194.71,11.7938289]
[1736366031197,81.3,194.78,194.73,10.1330289]
[1736366032226,22.05081468,194.84,194.73,10.1330289]
[1736366032429,20.0,194.84,194.73,10.1330289]
[1736366032806,20.0,194.79,194.73,10.1330289]
[1736366033729,81.3,194.82,194.75,10.1330289]
[1736366034029,81.3,194.82,194.76,10.1330289]
[1736366034604,81.3,194.82,194.75,12.8930289]
[1736366035332,81.3,194.82,194.76,10.1330289]
[1736366035538,81.3,194.82,194.75,2.76]
[1736366036325,81.3,194.82,194.75,12.8930289]
[1736366036901,81.3,194.82,194.75,2.76]
[1736366038207,81.3,194.82,194.75,12.8930289]
[1736366038831,81.3,194.82,194.76,10.1330289]
[1736366039033,81.3,194.82,194.79,10.1330289]
[1736366039233,81.3,194.87,194.81,10.1330289]
[1736366039542,89.32262442,194.9,194.85,10.1330289]
[1736366039908,89.32262442,194.9,194.84,10.1330289]
[1736366040132,89.32262442,194.9,194.83,2.76]
[1736366040133,81.3,194.9,194.85,10.1330289]
[1736366040433,81.3,194.9,194.86,10.1330289]
[1736366040610,81.3,194.9,194.85,10.1330289]
[1736366042409,81.3,194.9,194.84,1.5543]
[1736366042410,81.3,194.9,194.87,10.1330289]
[1736366043035,81.3,194.97,194.87,10.1330289]
[1736366043234,81.3,194.96,194.88,10.1330289]
[1736366043442,81.3,194.96,194.87,10.1330289]
[1736366044019,81.3,194.96,194.86,10.1330289]
[1736366044217,23.776884,194.95,194.86,10.1330289]
[1736366044637,23.776884,194.95,194.85,10.1330289]
[1736366044846,23.776884,194.95,194.86,2.76]
[1736366046040,23.776884,194.95,194.86,12.8930289]
[1736366047015,81.3,194.94,194.86,2.76]
[1736366047234,23.776884,194.93,194.86,2.76]
[1736366047749,20.0,194.9,194.86,2.76]
[1736366053023,81.3,194.89,194.86,2.76]
[1736366056858,6.3892,194.98,194.86,2.76]
[1736366056859,81.3,194.97,194.86,12.8930289]
[1736366057036,81.3,194.96,194.87,10.1330289]
[1736366057439,23.776884,194.95,194.87,10.1330289]
[1736366057643,81.3,194.96,194.86,2.76]
[1736366057846,81.3,194.95,194.86,2.76]
[1736366058148,23.776884,194.94,194.86,2.76]
[1736366058351,23.776884,194.94,194.87,2.76]
[1736366058352,23.776884,194.92,194.87,2.76]
[1736366060160,23.776884,194.92,194.84,4.3143]
[1736366060161,81.3,194.9,194.84,4.3143]
[1736366060532,23.776884,194.89,194.84,2.76]
[1736366060735,81.3,194.88,194.82,2.76]
[1736366061663,81.3,194.88,194.82,12.8930289]
[1736366061963,81.3,194.88,194.84,10.1330289]
[1736366062670,81.3,194.88,194.82,2.76]
[1736366062836,81.3,194.88,194.82,12.8930289]
[1736366063938,81.3,194.88,194.83,10.1330289]
[1736366064134,81.3,194.88,194.82,2.76]
[1736366064333,81.3,194.88,194.79,14.3541]
[1736366064334,81.3,194.88,194.8,2.76]
[1736366064835,81.3,194.95,194.83,10.1330289]
[1736366065042,81.3,194.94,194.87,10.1330289]
[1736366065291,81.3,194.94,194.88,2.76]
[1736366065968,23.776884,194.93,194.88,2.76]
[1736366067973,20.0,194.9,194.88,2.76]
[1736366068267,23.776884,194.89,194.88,2.76]
[1736366068446,105.076884,194.89,194.82,2.76]
[1736366070347,81.3,194.85,194.82,2.76]
[1736366071267,81.3,194.84,194.79,1.5199]
[1736366071564,81.3,194.84,194.76,12.8358]
[1736366071565,23.776884,194.83,194.74,14.5178289]
[1736366071944,23.776884,194.83,194.76,10.1330289]
[1736366072262,81.3,194.84,194.79,10.1330289]
[1736366072451,81.3,194.84,194.74,4.3848]
[1736366072452,81.3,194.84,194.8,10.1330289]
[1736366073745,81.3,194.84,194.79,10.1330289]
[1736366074071,81.3,194.84,194.77,10.1330289]
[1736366074466,2.76,194.96,194.83,11.6918289]
[1736366074467,81.3,194.92,194.83,11.6918289]
[1736366074671,81.3,194.92,194.89,10.1330289]
[1736366074968,8.02262442,194.96,194.9,10.1330289]
[1736366075350,20.0,194.95,194.9,10.1330289]
[1736366076274,20.0,194.95,194.88,10.1330289]
[1736366076661,23.776884,194.94,194.83,21.5588]
[1736366076864,105.076884,194.94,194.89,2.74]
[1736366080066,81.3,194.93,194.89,2.74]
[1736366080299,81.3,194.92,194.85,15.82324894]
[1736366080458,81.3,194.91,194.83,1.5588]
[1736366080657,81.3,194.91,194.84,2.74]
[1736366081464,20.0,194.91,194.81,2.74]
[1736366083175,20.0,194.91,194.81,18.56324894]
[1736366083377,20.0,194.91,194.81,2.74]
[1736366086480,20.0,194.87,194.81,2.74]
[1736366087178,20.0,194.87,194.78,17.34054894]
[1736366087367,20.0,194.87,194.79,2.74]
[1736366087680,20.0,194.87,194.78,1.5173]
[1736366087850,43.776884,194.86,194.78,1.5173]
[1736366089897,43.776884,194.86,194.78,17.34054894]
[1736366090584,43.776884,194.86,194.78,1.5173]
[1736366090997,20.0,194.86,194.78,1.5173]
[1736366091175,20.0,194.85,194.78,1.5173]
[1736366091979,81.3,194.84,194.78,17.34054894]